[Event "Early-Titled-Tuesday-Blitz-January-23-2024"]
[Site "Chess.com"]
[Date "2024.01.23"]
[Round "7"]
[White "Ducke13"]
[Black "Klavdia_Nik"]
[Result "1-0"]
[WhiteElo "2298"]
[BlackElo "2155"]
[TimeControl "180+1"]
[EndTime "9:16:49 PST"]
[Termination "Ducke13 won on time"]

1. d4 {[%clk 0:02:57]} 1... Nf6 {[%clk 0:02:39.6]} 2. g3 {[%clk 0:02:56.8]} 2...
c5 {[%clk 0:02:35.3]} 3. d5 {[%clk 0:02:56.7]} 3... d6 {[%clk 0:02:34.2]} 4. c4
{[%clk 0:02:57.2]} 4... b5 {[%clk 0:02:34.4]} 5. cxb5 {[%clk 0:02:57.2]} 5... a6
{[%clk 0:02:34.5]} 6. bxa6 {[%clk 0:02:57.6]} 6... Bxa6 {[%clk 0:02:34.6]} 7.
Nc3 {[%clk 0:02:57.8]} 7... g6 {[%clk 0:02:34.1]} 8. Nf3 {[%clk 0:02:58.5]} 8...
Bg7 {[%clk 0:02:34.5]} 9. Bg2 {[%clk 0:02:59.2]} 9... O-O {[%clk 0:02:35]} 10.
O-O {[%clk 0:02:59.5]} 10... Nbd7 {[%clk 0:02:35.5]} 11. Rb1 {[%clk 0:02:59]}
11... Qa5 {[%clk 0:02:27.8]} 12. Bd2 {[%clk 0:02:58.8]} 12... Rfb8 {[%clk
0:02:27.9]} 13. a4 {[%clk 0:02:59.3]} 13... Qb6 {[%clk 0:02:22.6]} 14. b3 {[%clk
0:02:54.3]} 14... Ra7 {[%clk 0:02:16.7]} 15. Re1 {[%clk 0:02:41.5]} 15... Ng4
{[%clk 0:01:57.1]} 16. h3 {[%clk 0:02:35.3]} 16... Nge5 {[%clk 0:01:53.7]} 17.
Qc2 {[%clk 0:02:30.5]} 17... Nxf3+ {[%clk 0:01:47.2]} 18. Bxf3 {[%clk
0:02:17.3]} 18... Rab7 {[%clk 0:01:40.2]} 19. Bg2 {[%clk 0:02:14.9]} 19... Qd8
{[%clk 0:01:24.9]} 20. Ne4 {[%clk 0:01:50.1]} 20... Qb6 {[%clk 0:00:37.9]} 21.
Bc3 {[%clk 0:01:46.1]} 21... Nf6 {[%clk 0:00:33.4]} 22. Nxf6+ {[%clk 0:01:41.5]}
22... exf6 {[%clk 0:00:34.3]} 23. e4 {[%clk 0:01:37.8]} 23... h5 {[%clk
0:00:29.1]} 24. h4 {[%clk 0:01:37.6]} 24... Qd8 {[%clk 0:00:20.5]} 25. Bf1
{[%clk 0:01:35.6]} 25... Bxf1 {[%clk 0:00:17.5]} 26. Rxf1 {[%clk 0:01:36]} 26...
Qb6 {[%clk 0:00:16.6]} 27. Rb2 {[%clk 0:01:26.4]} 27... Qa6 {[%clk 0:00:15]} 28.
Rfb1 {[%clk 0:01:24.6]} 28... Ra7 {[%clk 0:00:10.9]} 29. Ra2 {[%clk 0:01:17]}
29... Qc8 {[%clk 0:00:06.8]} 30. Kg2 {[%clk 0:01:08]} 30... Qg4 {[%clk
0:00:02.8]} 31. f3 {[%clk 0:01:03.3]} 31... Qd7 {[%clk 0:00:03.3]} 32. Qb2
{[%clk 0:01:01.5]} 32... Qe7 {[%clk 0:00:02.1]} 33. Qa1 {[%clk 0:01:01.1]} 33...
Rab7 {[%clk 0:00:01.6]} 34. Ra3 {[%clk 0:00:59.8]} 1-0

[Event "Early-Titled-Tuesday-Blitz-January-23-2024"]
[Site "Chess.com"]
[Date "2024.01.23"]
[Round "7"]
[White "dropstoneDP"]
[Black "ValentunHulka"]
[Result "0-1"]
[WhiteElo "3037"]
[BlackElo "2825"]
[TimeControl "180+1"]
[EndTime "9:16:50 PST"]
[Termination "ValentunHulka won on time"]

1. e4 {[%clk 0:03:00.9]} 1... c5 {[%clk 0:03:00.3]} 2. Nf3 {[%clk 0:02:59.2]}
2... Nc6 {[%clk 0:03:00.9]} 3. Nc3 {[%clk 0:02:58.3]} 3... Nf6 {[%clk
0:03:01.2]} 4. Bb5 {[%clk 0:02:57.5]} 4... g6 {[%clk 0:03:01.7]} 5. O-O {[%clk
0:02:56.5]} 5... Bg7 {[%clk 0:03:02.4]} 6. e5 {[%clk 0:02:51.1]} 6... Nh5 {[%clk
0:03:02.8]} 7. Bxc6 {[%clk 0:02:44.4]} 7... dxc6 {[%clk 0:03:01.4]} 8. d3 {[%clk
0:02:40.3]} 8... O-O {[%clk 0:02:59.8]} 9. h3 {[%clk 0:02:39]} 9... f6 {[%clk
0:02:47.1]} 10. g4 {[%clk 0:02:32.8]} 10... fxe5 {[%clk 0:02:47]} 11. gxh5
{[%clk 0:02:33.1]} 11... Bxh3 {[%clk 0:02:47.7]} 12. Ng5 {[%clk 0:02:23.6]}
12... Bxf1 {[%clk 0:02:41.5]} 13. Qxf1 {[%clk 0:02:24.5]} 13... Qd7 {[%clk
0:02:36.6]} 14. hxg6 {[%clk 0:02:18.1]} 14... hxg6 {[%clk 0:02:31.2]} 15. Be3
{[%clk 0:02:13.2]} 15... Bh6 {[%clk 0:02:19.3]} 16. Qg2 {[%clk 0:02:00.7]} 16...
Kg7 {[%clk 0:01:53.1]} 17. Kf1 {[%clk 0:01:57.9]} 17... Rf5 {[%clk 0:01:52.2]}
18. Nce4 {[%clk 0:01:54.5]} 18... Bxg5 {[%clk 0:01:13.4]} 19. Nxg5 {[%clk
0:01:53.3]} 19... Qd5 {[%clk 0:01:11.8]} 20. Qxd5 {[%clk 0:01:06.3]} 20... cxd5
{[%clk 0:01:11.2]} 21. Ne6+ {[%clk 0:01:07.2]} 21... Kf7 {[%clk 0:01:02.9]} 22.
Nxc5 {[%clk 0:01:07.6]} 22... Rc8 {[%clk 0:00:58.4]} 23. d4 {[%clk 0:00:35.2]}
23... exd4 {[%clk 0:00:57.7]} 24. Bxd4 {[%clk 0:00:36.1]} 24... e5 {[%clk
0:00:58.5]} 25. Nxb7 {[%clk 0:00:35.3]} 25... Ke6 {[%clk 0:00:47.4]} 26. Bc5
{[%clk 0:00:14]} 26... Rc7 {[%clk 0:00:42.8]} 27. Nd6 {[%clk 0:00:09.4]} 27...
Rh5 {[%clk 0:00:43.1]} 0-1

[Event "Early-Titled-Tuesday-Blitz-January-23-2024"]
[Site "Chess.com"]
[Date "2024.01.23"]
[Round "7"]
[White "GlavkonVVS"]
[Black "ChessboArt"]
[Result "1-0"]
[WhiteElo "2478"]
[BlackElo "2200"]
[TimeControl "180+1"]
[EndTime "9:16:50 PST"]
[Termination "GlavkonVVS won by resignation"]

1. c4 {[%clk 0:02:38.2]} 1... g6 {[%clk 0:02:57.9]} 2. Nf3 {[%clk 0:02:37.4]}
2... Bg7 {[%clk 0:02:58]} 3. d4 {[%clk 0:02:36]} 3... Nf6 {[%clk 0:02:57.6]} 4.
Nc3 {[%clk 0:02:35.1]} 4... d6 {[%clk 0:02:57]} 5. Bg5 {[%clk 0:02:35.1]} 5...
O-O {[%clk 0:02:56.7]} 6. e3 {[%clk 0:02:34.5]} 6... b6 {[%clk 0:02:55.9]} 7.
Bd3 {[%clk 0:02:27.5]} 7... Bb7 {[%clk 0:02:55.9]} 8. O-O {[%clk 0:02:27.1]}
8... Nbd7 {[%clk 0:02:55.8]} 9. h3 {[%clk 0:02:27.1]} 9... h6 {[%clk 0:02:40.2]}
10. Bh4 {[%clk 0:02:26.6]} 10... e5 {[%clk 0:02:40.4]} 11. Bc2 {[%clk
0:02:20.6]} 11... Qe7 {[%clk 0:02:15.3]} 12. Re1 {[%clk 0:02:18.5]} 12... e4
{[%clk 0:02:12.3]} 13. Nd2 {[%clk 0:02:18.1]} 13... g5 {[%clk 0:02:10.5]} 14.
Bg3 {[%clk 0:02:17.7]} 14... Rae8 {[%clk 0:02:07.8]} 15. b4 {[%clk 0:02:11.1]}
15... Kh8 {[%clk 0:01:38.4]} 16. Nb5 {[%clk 0:02:02.3]} 16... Nb8 {[%clk
0:01:27.6]} 17. Nxa7 {[%clk 0:01:59.4]} 17... c6 {[%clk 0:01:27.4]} 18. b5
{[%clk 0:01:58.9]} 18... c5 {[%clk 0:01:22.3]} 19. Rb1 {[%clk 0:01:49.6]} 19...
Ng8 {[%clk 0:01:03.1]} 20. Nc6 {[%clk 0:01:34.3]} 20... Nxc6 {[%clk 0:01:01.1]}
21. bxc6 {[%clk 0:01:34.2]} 21... Bxc6 {[%clk 0:01:02]} 22. Rxb6 {[%clk
0:01:34.4]} 22... Qc7 {[%clk 0:00:55.6]} 23. dxc5 {[%clk 0:01:31.9]} 23... Be5
{[%clk 0:00:44.3]} 24. Bxe5+ {[%clk 0:01:20.4]} 24... Rxe5 {[%clk 0:00:45.2]}
25. Qa1 {[%clk 0:01:20.3]} 25... Re8 {[%clk 0:00:39.7]} 26. Bxe4 {[%clk
0:00:54.8]} 26... Bxe4 {[%clk 0:00:33.2]} 27. Nxe4 {[%clk 0:00:53.1]} 27... dxc5
{[%clk 0:00:33.3]} 28. Reb1 {[%clk 0:00:39.8]} 28... f6 {[%clk 0:00:30.9]} 29.
Nxf6 {[%clk 0:00:38]} 29... Nxf6 {[%clk 0:00:27]} 30. Rxf6 {[%clk 0:00:37.5]}
30... Qg7 {[%clk 0:00:27.8]} 31. Rbb6 {[%clk 0:00:35.9]} 1-0

[Event "Early-Titled-Tuesday-Blitz-January-23-2024"]
[Site "Chess.com"]
[Date "2024.01.23"]
[Round "7"]
[White "campochess"]
[Black "Nellichka"]
[Result "0-1"]
[WhiteElo "2090"]
[BlackElo "1945"]
[TimeControl "180+1"]
[EndTime "9:16:50 PST"]
[Termination "Nellichka won on time"]

1. Nf3 {[%clk 0:02:59.4]} 1... d5 {[%clk 0:02:57.8]} 2. b3 {[%clk 0:02:55.9]}
2... Bg4 {[%clk 0:02:53.7]} 3. Bb2 {[%clk 0:02:52.1]} 3... Nc6 {[%clk
0:02:50.6]} 4. d4 {[%clk 0:02:49.7]} 4... Nf6 {[%clk 0:02:47.9]} 5. Ne5 {[%clk
0:02:44.1]} 5... Nxe5 {[%clk 0:02:40.9]} 6. dxe5 {[%clk 0:02:43.2]} 6... Nd7
{[%clk 0:02:30.2]} 7. Qxd5 {[%clk 0:02:41]} 7... c6 {[%clk 0:02:23.1]} 8. Qd2
{[%clk 0:02:39.7]} 8... e6 {[%clk 0:02:09.4]} 9. Nc3 {[%clk 0:02:38.5]} 9...
Nxe5 {[%clk 0:02:04.9]} 10. Qf4 {[%clk 0:02:34.3]} 10... Bd6 {[%clk 0:02:00.7]}
11. Rd1 {[%clk 0:01:56]} 11... Nd3+ {[%clk 0:01:41.4]} 12. Rxd3 {[%clk
0:01:43.5]} 12... Bxf4 {[%clk 0:01:40.7]} 13. Rxd8+ {[%clk 0:01:43.2]} 13...
Rxd8 {[%clk 0:01:38.6]} 14. e3 {[%clk 0:01:29.9]} 14... Be5 {[%clk 0:01:34.3]}
15. Bd3 {[%clk 0:01:29]} 15... O-O {[%clk 0:01:30.3]} 16. f3 {[%clk 0:01:25.2]}
16... Bf5 {[%clk 0:01:25.2]} 17. e4 {[%clk 0:01:24.2]} 17... Bg6 {[%clk
0:01:24.1]} 18. Ke2 {[%clk 0:01:21.3]} 18... b5 {[%clk 0:01:19.4]} 19. h4 {[%clk
0:01:15.2]} 19... h5 {[%clk 0:01:17.9]} 20. g4 {[%clk 0:01:14.7]} 20... Rd7
{[%clk 0:01:16.7]} 21. a4 {[%clk 0:00:55.7]} 21... b4 {[%clk 0:01:13.5]} 22. Nd1
{[%clk 0:00:55.5]} 22... Bg3 {[%clk 0:01:01.9]} 23. Ne3 {[%clk 0:00:53.8]} 23...
f5 {[%clk 0:00:54.5]} 24. gxf5 {[%clk 0:00:50.3]} 24... exf5 {[%clk 0:00:52.9]}
25. exf5 {[%clk 0:00:44.3]} 25... Re8 {[%clk 0:00:51.6]} 26. fxg6 {[%clk
0:00:31.1]} 26... Rde7 {[%clk 0:00:50]} 27. Be4 {[%clk 0:00:31.3]} 27... Bf4
{[%clk 0:00:44.4]} 0-1

[Event "Early-Titled-Tuesday-Blitz-January-23-2024"]
[Site "Chess.com"]
[Date "2024.01.23"]
[Round "7"]
[White "SpeedofLight0"]
[Black "shimastream"]
[Result "1-0"]
[WhiteElo "2921"]
[BlackElo "3013"]
[TimeControl "180+1"]
[EndTime "9:16:55 PST"]
[Termination "SpeedofLight0 won on time"]

1. d4 {[%clk 0:03:00.9]} 1... d5 {[%clk 0:02:58.2]} 2. c4 {[%clk 0:03:00.6]}
2... e6 {[%clk 0:02:55.6]} 3. Nc3 {[%clk 0:03:00]} 3... a6 {[%clk 0:02:55.4]} 4.
cxd5 {[%clk 0:02:59.2]} 4... exd5 {[%clk 0:02:55.2]} 5. Nf3 {[%clk 0:03:00.1]}
5... Nf6 {[%clk 0:02:54.6]} 6. Bf4 {[%clk 0:03:00]} 6... Bd6 {[%clk 0:02:53.4]}
7. e3 {[%clk 0:02:58.8]} 7... O-O {[%clk 0:02:48.4]} 8. Be2 {[%clk 0:02:57]}
8... Bxf4 {[%clk 0:02:48.3]} 9. exf4 {[%clk 0:02:57.9]} 9... Bg4 {[%clk
0:02:46.9]} 10. Ne5 {[%clk 0:02:57.5]} 10... Bxe2 {[%clk 0:02:46.4]} 11. Qxe2
{[%clk 0:02:57.4]} 11... c6 {[%clk 0:02:47.1]} 12. O-O {[%clk 0:02:56.4]} 12...
Ne8 {[%clk 0:02:45.9]} 13. Na4 {[%clk 0:02:52.2]} 13... Nd6 {[%clk 0:02:41.2]}
14. Nc5 {[%clk 0:02:51.9]} 14... Re8 {[%clk 0:02:40.8]} 15. Qg4 {[%clk
0:02:50.8]} 15... f6 {[%clk 0:02:31.3]} 16. Ned3 {[%clk 0:02:41.7]} 16... Qc8
{[%clk 0:02:28]} 17. Qxc8 {[%clk 0:01:55.6]} 17... Rxc8 {[%clk 0:02:28.9]} 18.
Rfe1 {[%clk 0:01:55.8]} 18... b6 {[%clk 0:02:17.1]} 19. Na4 {[%clk 0:01:51.9]}
19... Nc4 {[%clk 0:01:43.9]} 20. Re7 {[%clk 0:01:41.6]} 20... b5 {[%clk
0:01:29.9]} 21. Nac5 {[%clk 0:01:38.3]} 21... Nd6 {[%clk 0:01:29.8]} 22. Ne6
{[%clk 0:01:03.8]} 22... Nf5 {[%clk 0:01:26.3]} 23. Rb7 {[%clk 0:01:03.5]} 23...
Re8 {[%clk 0:01:15.4]} 24. Nc7 {[%clk 0:00:55.7]} 24... Re7 {[%clk 0:01:15.3]}
25. Re1 {[%clk 0:00:55.4]} 25... Rd7 {[%clk 0:01:07.1]} 26. Nc5 {[%clk
0:00:51.5]} 26... Nd6 {[%clk 0:00:49.9]} 27. Nxd7 {[%clk 0:00:35]} 27... Nxd7
{[%clk 0:00:48.6]} 28. Nxa8 {[%clk 0:00:33.9]} 1-0

[Event "Early-Titled-Tuesday-Blitz-January-23-2024"]
[Site "Chess.com"]
[Date "2024.01.23"]
[Round "7"]
[White "masnyszachistaaa"]
[Black "Me_ch_an"]
[Result "1-0"]
[WhiteElo "2530"]
[BlackElo "2312"]
[TimeControl "180+1"]
[EndTime "9:16:55 PST"]
[Termination "masnyszachistaaa won on time"]

1. c4 {[%clk 0:03:00.5]} 1... e5 {[%clk 0:02:58]} 2. Nc3 {[%clk 0:02:59.8]} 2...
Nc6 {[%clk 0:02:57.4]} 3. Nf3 {[%clk 0:02:59]} 3... g6 {[%clk 0:02:57.5]} 4. d4
{[%clk 0:02:34.8]} 4... Bg7 {[%clk 0:02:53.5]} 5. dxe5 {[%clk 0:02:32.7]} 5...
Nxe5 {[%clk 0:02:53.5]} 6. Nxe5 {[%clk 0:02:32.2]} 6... Bxe5 {[%clk 0:02:54.4]}
7. g3 {[%clk 0:02:29.3]} 7... d6 {[%clk 0:02:50.4]} 8. Bg2 {[%clk 0:02:28.9]}
8... Ne7 {[%clk 0:02:48.9]} 9. O-O {[%clk 0:02:26.2]} 9... O-O {[%clk
0:02:29.2]} 10. Bg5 {[%clk 0:02:22.2]} 10... c6 {[%clk 0:02:07.4]} 11. Qd2
{[%clk 0:02:17.3]} 11... Be6 {[%clk 0:02:06.4]} 12. b3 {[%clk 0:02:07.5]} 12...
Qc7 {[%clk 0:01:48.9]} 13. Rac1 {[%clk 0:02:01.2]} 13... Rad8 {[%clk 0:01:47.6]}
14. Rfd1 {[%clk 0:02:00.7]} 14... Rd7 {[%clk 0:01:20]} 15. Ne4 {[%clk
0:01:53.9]} 15... f5 {[%clk 0:01:17.9]} 16. Nc3 {[%clk 0:01:45.5]} 16... Rfd8
{[%clk 0:01:13.3]} 17. Nd5 {[%clk 0:01:35.7]} 17... Bxd5 {[%clk 0:01:05]} 18.
cxd5 {[%clk 0:01:34.4]} 18... c5 {[%clk 0:01:05.5]} 19. e4 {[%clk 0:01:28.5]}
19... Rf8 {[%clk 0:01:03.2]} 20. Bxe7 {[%clk 0:01:26.1]} 20... Rxe7 {[%clk
0:01:03.2]} 21. exf5 {[%clk 0:01:26.7]} 21... Rxf5 {[%clk 0:00:59.1]} 22. Bh3
{[%clk 0:01:25.7]} 22... Rf8 {[%clk 0:00:58.9]} 23. Be6+ {[%clk 0:01:25.4]}
23... Kh8 {[%clk 0:00:57.1]} 24. f4 {[%clk 0:01:25.6]} 24... Bd4+ {[%clk
0:00:55]} 25. Kg2 {[%clk 0:01:24.5]} 25... Bg7 {[%clk 0:00:48.1]} 26. Re1 {[%clk
0:01:18.7]} 26... b5 {[%clk 0:00:47.1]} 27. Qd3 {[%clk 0:01:18.1]} 27... a6
{[%clk 0:00:45.6]} 28. Re2 {[%clk 0:01:18]} 28... Rfe8 {[%clk 0:00:43.4]} 29. h4
{[%clk 0:01:16.7]} 29... Qb7 {[%clk 0:00:37.5]} 30. Qf3 {[%clk 0:01:12]} 30...
Rc7 {[%clk 0:00:18.9]} 31. h5 {[%clk 0:01:11.7]} 31... c4 {[%clk 0:00:13.8]} 32.
bxc4 {[%clk 0:01:01]} 32... Rxc4 {[%clk 0:00:11.4]} 33. Rh1 {[%clk 0:01:01]}
33... Rc3 {[%clk 0:00:08.4]} 34. Qg4 {[%clk 0:00:58.1]} 34... gxh5 {[%clk
0:00:02.9]} 35. Qxh5 {[%clk 0:00:59]} 1-0

[Event "Early-Titled-Tuesday-Blitz-January-23-2024"]
[Site "Chess.com"]
[Date "2024.01.23"]
[Round "7"]
[White "ljuks68"]
[Black "ferdipy"]
[Result "1-0"]
[WhiteElo "2463"]
[BlackElo "2290"]
[TimeControl "180+1"]
[EndTime "9:16:59 PST"]
[Termination "ljuks68 won on time"]

1. e4 {[%clk 0:03:00.9]} 1... c5 {[%clk 0:02:54.9]} 2. Nf3 {[%clk 0:03:00.3]}
2... d6 {[%clk 0:02:39]} 3. d4 {[%clk 0:03:00]} 3... cxd4 {[%clk 0:02:39.9]} 4.
Nxd4 {[%clk 0:03:00.4]} 4... Nf6 {[%clk 0:02:37.5]} 5. Nc3 {[%clk 0:03:00.4]}
5... a6 {[%clk 0:02:32.2]} 6. Bg5 {[%clk 0:02:59.3]} 6... e6 {[%clk 0:02:32.4]}
7. f4 {[%clk 0:02:59.6]} 7... Be7 {[%clk 0:02:32.8]} 8. Qf3 {[%clk 0:02:59.8]}
8... Qc7 {[%clk 0:02:33.1]} 9. O-O-O {[%clk 0:03:00.2]} 9... Nbd7 {[%clk
0:02:33.4]} 10. g4 {[%clk 0:02:59.9]} 10... h6 {[%clk 0:02:31.9]} 11. Bxf6
{[%clk 0:02:59.8]} 11... Bxf6 {[%clk 0:02:32.8]} 12. h4 {[%clk 0:03:00.3]} 12...
Nb6 {[%clk 0:02:32.5]} 13. g5 {[%clk 0:02:59.7]} 13... Bxd4 {[%clk 0:02:32.2]}
14. Rxd4 {[%clk 0:02:59]} 14... Qc5 {[%clk 0:02:32.9]} 15. Qd3 {[%clk
0:02:35.5]} 15... hxg5 {[%clk 0:02:01.8]} 16. Rxd6 {[%clk 0:02:29.4]} 16... Ke7
{[%clk 0:01:59.8]} 17. e5 {[%clk 0:02:28.8]} 17... gxh4 {[%clk 0:01:43.1]} 18.
Bg2 {[%clk 0:02:03]} 18... g5 {[%clk 0:01:05.9]} 19. Ne4 {[%clk 0:01:57.2]}
19... Qa5 {[%clk 0:00:38.9]} 20. Nxg5 {[%clk 0:01:56.6]} 20... Bd7 {[%clk
0:00:23.4]} 21. Qd4 {[%clk 0:01:38.5]} 21... Bc6 {[%clk 0:00:06.8]} 22. Bxc6
{[%clk 0:01:35.5]} 22... bxc6 {[%clk 0:00:07.7]} 23. b4 {[%clk 0:01:12.4]} 23...
Qa3+ {[%clk 0:00:06.3]} 24. Kd2 {[%clk 0:00:37.2]} 24... Nd5 {[%clk 0:00:01.9]}
25. c3 {[%clk 0:00:36.4]} 25... Qb2+ {[%clk 0:00:02]} 26. Kd3 {[%clk 0:00:31.4]}
1-0

[Event "Early-Titled-Tuesday-Blitz-January-23-2024"]
[Site "Chess.com"]
[Date "2024.01.23"]
[Round "7"]
[White "AsselLesbekova"]
[Black "stratacticos"]
[Result "1-0"]
[WhiteElo "2286"]
[BlackElo "2022"]
[TimeControl "180+1"]
[EndTime "9:16:59 PST"]
[Termination "AsselLesbekova won on time"]

1. e4 {[%clk 0:02:56.5]} 1... c5 {[%clk 0:02:59.1]} 2. Nf3 {[%clk 0:02:56.5]}
2... Nc6 {[%clk 0:02:58.7]} 3. Bb5 {[%clk 0:02:56.7]} 3... Na5 {[%clk 0:02:58]}
4. O-O {[%clk 0:02:56.1]} 4... a6 {[%clk 0:02:57.8]} 5. Be2 {[%clk 0:02:54.9]}
5... Nc6 {[%clk 0:02:57.5]} 6. d4 {[%clk 0:02:55.1]} 6... cxd4 {[%clk
0:02:57.2]} 7. Nxd4 {[%clk 0:02:56]} 7... e5 {[%clk 0:02:56.2]} 8. Nf5 {[%clk
0:02:55.3]} 8... d5 {[%clk 0:02:55.2]} 9. exd5 {[%clk 0:02:55.3]} 9... Bxf5
{[%clk 0:02:54.4]} 10. dxc6 {[%clk 0:02:55.5]} 10... Qxd1 {[%clk 0:02:53.4]} 11.
Rxd1 {[%clk 0:02:56.4]} 11... bxc6 {[%clk 0:02:52.4]} 12. Bf3 {[%clk 0:02:54.2]}
12... e4 {[%clk 0:02:49.7]} 13. Be2 {[%clk 0:02:53.5]} 13... Nf6 {[%clk
0:02:46.2]} 14. Nc3 {[%clk 0:02:40.4]} 14... Bb4 {[%clk 0:02:43]} 15. Bd2 {[%clk
0:02:36.3]} 15... O-O {[%clk 0:02:41.4]} 16. Nxe4 {[%clk 0:02:36.2]} 16... Be7
{[%clk 0:02:25.3]} 17. Nxf6+ {[%clk 0:02:33.5]} 17... Bxf6 {[%clk 0:02:25]} 18.
c3 {[%clk 0:02:33.8]} 18... Rfe8 {[%clk 0:02:24.5]} 19. Be3 {[%clk 0:02:31.8]}
19... Rab8 {[%clk 0:02:18.3]} 20. Rd2 {[%clk 0:02:31.2]} 20... a5 {[%clk
0:02:01.8]} 21. g4 {[%clk 0:02:21.6]} 21... Be6 {[%clk 0:01:59.2]} 22. g5 {[%clk
0:02:19.7]} 22... Be5 {[%clk 0:01:55.7]} 23. a3 {[%clk 0:02:09.2]} 23... f6
{[%clk 0:01:49.8]} 24. f4 {[%clk 0:01:58.9]} 24... Bc7 {[%clk 0:01:48.9]} 25.
gxf6 {[%clk 0:01:58.7]} 25... gxf6 {[%clk 0:01:48.7]} 26. Kf2 {[%clk 0:01:59.1]}
26... Red8 {[%clk 0:01:42.5]} 27. Rg1+ {[%clk 0:01:57.2]} 27... Kh8 {[%clk
0:01:33]} 28. Bd4 {[%clk 0:01:57]} 28... Rxd4 {[%clk 0:01:29.7]} 29. cxd4 {[%clk
0:01:54.4]} 29... Bxf4 {[%clk 0:01:29]} 30. Rc2 {[%clk 0:01:53.5]} 30... Bxh2
{[%clk 0:01:22.5]} 31. Rh1 {[%clk 0:01:47.1]} 31... Bf4 {[%clk 0:01:15.4]} 32.
Bf3 {[%clk 0:01:42.1]} 32... Bd5 {[%clk 0:01:08.5]} 33. Bxd5 {[%clk 0:01:39.2]}
33... cxd5 {[%clk 0:01:08.5]} 34. Kf3 {[%clk 0:01:39.9]} 34... Bg5 {[%clk
0:01:05.5]} 35. Rc7 {[%clk 0:01:37.3]} 35... h6 {[%clk 0:01:05.2]} 36. Rb1
{[%clk 0:01:35.1]} 36... f5 {[%clk 0:00:56.1]} 37. b4 {[%clk 0:01:34.9]} 37...
axb4 {[%clk 0:00:55.8]} 38. axb4 {[%clk 0:01:35.8]} 38... Ra8 {[%clk 0:00:54.8]}
39. Rb3 {[%clk 0:01:34.5]} 39... Re8 {[%clk 0:00:52.1]} 40. b5 {[%clk
0:01:34.6]} 40... Re4 {[%clk 0:00:51.2]} 41. b6 {[%clk 0:01:34.5]} 41... Rxd4
{[%clk 0:00:51]} 42. b7 {[%clk 0:01:34.9]} 42... Rf4+ {[%clk 0:00:50.8]} 43. Kg3
{[%clk 0:01:35.1]} 43... Rg4+ {[%clk 0:00:50.5]} 44. Kf2 {[%clk 0:01:30.5]}
44... Bh4+ {[%clk 0:00:45.7]} 45. Kf1 {[%clk 0:01:27.5]} 45... Rf4+ {[%clk
0:00:41.9]} 46. Kg2 {[%clk 0:01:28.1]} 46... Rg4+ {[%clk 0:00:41.3]} 47. Kh3
{[%clk 0:01:28.8]} 1-0

[Event "Early-Titled-Tuesday-Blitz-January-23-2024"]
[Site "Chess.com"]
[Date "2024.01.23"]
[Round "7"]
[White "maurovargas01"]
[Black "flomarechot"]
[Result "0-1"]
[WhiteElo "1849"]
[BlackElo "2275"]
[TimeControl "180+1"]
[EndTime "9:16:59 PST"]
[Termination "flomarechot won on time"]

1. e4 {[%clk 0:02:58.8]} 1... d6 {[%clk 0:02:58.3]} 2. Nc3 {[%clk 0:02:57]} 2...
Nf6 {[%clk 0:02:58.5]} 3. Bb5+ {[%clk 0:02:51.5]} 3... c6 {[%clk 0:02:58.1]} 4.
Ba4 {[%clk 0:02:51.7]} 4... e5 {[%clk 0:02:58.5]} 5. Bb3 {[%clk 0:02:48.8]} 5...
Be7 {[%clk 0:02:58.6]} 6. d3 {[%clk 0:02:45.7]} 6... O-O {[%clk 0:02:58.1]} 7.
h3 {[%clk 0:02:44.1]} 7... Na6 {[%clk 0:02:57.5]} 8. f4 {[%clk 0:02:38]} 8...
Nc5 {[%clk 0:02:56.7]} 9. Bc4 {[%clk 0:02:34.7]} 9... exf4 {[%clk 0:02:51]} 10.
Bxf4 {[%clk 0:02:33.9]} 10... d5 {[%clk 0:02:51]} 11. exd5 {[%clk 0:02:30.6]}
11... cxd5 {[%clk 0:02:51.4]} 12. Bb5 {[%clk 0:02:11.3]} 12... a6 {[%clk
0:02:50.9]} 13. Ba4 {[%clk 0:02:08.9]} 13... Nxa4 {[%clk 0:02:38.7]} 14. Nxa4
{[%clk 0:02:06.7]} 14... Qa5+ {[%clk 0:02:39.4]} 15. Nc3 {[%clk 0:02:06.2]}
15... d4 {[%clk 0:02:39.4]} 16. Bd2 {[%clk 0:01:58.4]} 16... dxc3 {[%clk
0:02:39.5]} 17. Bxc3 {[%clk 0:01:58.4]} 17... Bb4 {[%clk 0:02:34.4]} 18. Qd2
{[%clk 0:01:57.6]} 18... Bxc3 {[%clk 0:02:34.7]} 19. bxc3 {[%clk 0:01:57]} 19...
Re8+ {[%clk 0:02:30.6]} 20. Ne2 {[%clk 0:01:56.9]} 20... Qe5 {[%clk 0:02:11]}
21. d4 {[%clk 0:01:53.8]} 21... Qe4 {[%clk 0:02:06.7]} 22. O-O {[%clk
0:01:41.2]} 22... Qxe2 {[%clk 0:02:06.1]} 23. Qg5 {[%clk 0:01:30]} 23... Qe3+
{[%clk 0:02:01.8]} 24. Qxe3 {[%clk 0:01:28.3]} 24... Rxe3 {[%clk 0:02:02.7]} 25.
g4 {[%clk 0:01:18.3]} 25... h6 {[%clk 0:02:01.2]} 26. Rab1 {[%clk 0:01:12.8]}
26... b5 {[%clk 0:01:58.1]} 27. Rb3 {[%clk 0:01:11.4]} 27... Be6 {[%clk
0:01:56.7]} 28. Ra3 {[%clk 0:01:05.5]} 28... Nd5 {[%clk 0:01:49.2]} 29. Rb1
{[%clk 0:00:55.6]} 29... Rxc3 {[%clk 0:01:47.6]} 30. Ra5 {[%clk 0:00:45.9]}
30... Rxc2 {[%clk 0:01:30.2]} 31. Rbxb5 {[%clk 0:00:44.8]} 31... axb5 {[%clk
0:01:30.3]} 32. Rxa8+ {[%clk 0:00:44.5]} 32... Kh7 {[%clk 0:01:30.9]} 33. Rb8
{[%clk 0:00:42.1]} 33... b4 {[%clk 0:01:30]} 34. Rb5 {[%clk 0:00:29.7]} 34...
Rxa2 {[%clk 0:01:27.6]} 35. h4 {[%clk 0:00:26.2]} 35... g5 {[%clk 0:01:23.7]}
36. hxg5 {[%clk 0:00:23.6]} 36... hxg5 {[%clk 0:01:24.6]} 37. Kf1 {[%clk
0:00:20.5]} 37... Rb2 {[%clk 0:01:15.3]} 38. Kg1 {[%clk 0:00:18.1]} 38... b3
{[%clk 0:01:13.9]} 39. Kf1 {[%clk 0:00:09.5]} 39... Kg6 {[%clk 0:01:13.4]} 40.
Ke1 {[%clk 0:00:08.6]} 40... Ne3 {[%clk 0:01:10]} 0-1